{"text_format":"3","workbook":"xlsx","n_sheets":2,"sheets":["Công cụ theo dõi giảm cân","tính toán"],"not_rendered":{"charts":1,"defined_names":10},"read":"whole","date_system":"1900"}

{"sheet":"Công cụ theo dõi giảm cân","index":0,"n_rows":19,"n_cols":9,"rows_kept":19,"merged":[[0,3,0,7],[0,8,0,9],[1,3,2,9]]}
[null,"CÂN NẶNG MỤC TIÊU","DẠNG XEM BIỂU ĐỒ","Tên",{"$nulls":4},"GIẢM CÂN"]
[{"$nulls":3},"BẢNG THEO DÕI"]
[null,{"v":172,"d":"172.0"},"HÀNG TUẦN"]
[null,"HIỂN THỊ CÂN NẶNG MỤC TIÊU","Có"]
[null,"Biểu đồ Theo dõi cân nặng theo dõi cân nặng hiện tại trong ô này. Chọn “Có” trong ô C4 để hiển thị dòng Cân nặng mục tiêu trên biểu đồ vùng."]
[]
[null,"NGÀY","CÂN NẶNG"]
[null,{"$f":"TODAY()-77","v":"2022-01-19"},{"v":176,"d":"176.0"}]
[null,{"$f":"TODAY()-70","v":"2022-01-26"},{"v":176,"d":"176.0"}]
[null,{"$f":"TODAY()-63","v":"2022-02-02"},177.6]
[null,{"$f":"TODAY()-56","v":"2022-02-09"},176.5]
[null,{"$f":"TODAY()-49","v":"2022-02-16"},176.1]
[null,{"$f":"TODAY()-42","v":"2022-02-23"},{"v":174,"d":"174.0"}]
[null,{"$f":"TODAY()-35","v":"2022-03-02"},173.5]
[null,{"$f":"TODAY()-28","v":"2022-03-09"},{"v":173,"d":"173.0"}]
[null,{"$f":"TODAY()-21","v":"2022-03-16"},{"v":172,"d":"172.0"}]
[null,{"$f":"TODAY()-14","v":"2022-03-23"},{"v":172,"d":"172.0"}]
[null,{"$f":"TODAY()-7","v":"2022-03-30"},{"v":173,"d":"173.0"}]
[null,{"$f":"TODAY()","v":"2022-04-06"},{"v":172,"d":"172.0"}]

{"sheet":"tính toán","index":1,"n_rows":107,"n_cols":17,"rows_kept":107,"hidden":true}
["*** Trang tính này vẫn bị ẩn ***"]
[]
[{"$f":"COUNTIF(A5:A107,FALSE)","v":12},"Thời gian","Giá trị",{"$nulls":3},{"$f":"COUNTIF(H5:H28,\">\"&0)","v":4},"Thời gian",null,"Giá trị"]
[null,"Tuần",null,null,{"$f":"IFERROR(IF(Hiển_thị_mục_tiêu=\"Có\", TRUE, FALSE),FALSE)","v":true},null,null,"Tháng","Cuối tháng"]
[{"$f":"FALSE","v":false},{"$f":"IFERROR(IF(LEN('Công cụ theo dõi giảm cân'!$B8)=0,TODAY(),'Công cụ theo dõi giảm cân'!$B8),TODAY())","v":"2022-01-19"},{"$f":"IFERROR(IF(LEN('Công cụ theo dõi giảm cân'!$C8)=0,Cân_nặng_mục_tiêu,'Công cụ theo dõi giảm cân'!$C8),0)","v":176},{"$f":"IFERROR(IF(MIN(Thời_gian_biểu_đồ)=0,TODAY(),MIN(Thời_gian_biểu_đồ)),TODAY())","v":"2022-01-19"},{"$f":"IFERROR(IF($A$5,0,IF($E$4,Cân_nặng_mục_tiêu,NA())),0)","v":172},null,null,{"$f":"IFERROR(IF($A$5,TODAY(),DATE(YEAR($B5),MONTH($B5),1)),\"\")","v":"2022-01-01"},{"$f":"IFERROR(IF($A$5,TODAY(),EOMONTH($H5,0)),\"\")","v":"2022-01-31"},{"$f":"IFERROR(IF($A$5,0,AVERAGEIFS(Cân_nặng[CÂN NẶNG],Cân_nặng[NGÀY],\">=\"&$H5,Cân_nặng[NGÀY],\"<=\"&$I5)),NA())","v":176}]
[{"$f":"IF((LEN('Công cụ theo dõi giảm cân'!$C9)=0),TRUE)","v":false},{"$f":"IFERROR(IF(A6,0,IF(LEN('Công cụ theo dõi giảm cân'!$B9)=0,0,'Công cụ theo dõi giảm cân'!$B9)),\"\")","v":"2022-01-26"},{"$f":"IFERROR(IF(A6,0,IF(LEN('Công cụ theo dõi giảm cân'!$C9)=0,0,'Công cụ theo dõi giảm cân'!$C9)),\"\")","v":176},{"$f":"IFERROR(IF(MAX(Thời_gian_biểu_đồ)=0,TODAY(),MAX(Thời_gian_biểu_đồ)),TODAY())","v":"2022-04-06"},{"$f":"IFERROR(IF($A$5,0,IF($E$4,Cân_nặng_mục_tiêu,NA())),0)","v":172},null,null,{"$f":"IF($I5+1>MAX($B:$B),NA(),$I5+1)","v":"2022-02-01"},{"$f":"EOMONTH($H6,0)","v":"2022-02-28"},{"$f":"IFERROR(AVERAGEIFS(Cân_nặng[CÂN NẶNG],Cân_nặng[NGÀY],\">=\"&$H6,Cân_nặng[NGÀY],\"<=\"&$I6),NA())","v":176.05}]
[{"$f":"IF((LEN('Công cụ theo dõi giảm cân'!$C10)=0),TRUE)","v":false},{"$f":"IFERROR(IF(A7,0,IF(LEN('Công cụ theo dõi giảm cân'!$B10)=0,0,'Công cụ theo dõi giảm cân'!$B10)),\"\")","v":"2022-02-02"},{"$f":"IFERROR(IF(A7,0,IF(LEN('Công cụ theo dõi giảm cân'!$C10)=0,0,'Công cụ theo dõi giảm cân'!$C10)),\"\")","v":177.6},{"$nulls":4},"2022-03-01","2022-03-31",{"$f":"IFERROR(AVERAGEIFS(Cân_nặng[CÂN NẶNG],Cân_nặng[NGÀY],\">=\"&$H7,Cân_nặng[NGÀY],\"<=\"&$I7),NA())","v":172.7}]
[{"$f":"IF((LEN('Công cụ theo dõi giảm cân'!$C11)=0),TRUE)","v":false},{"$f":"IFERROR(IF(A8,0,IF(LEN('Công cụ theo dõi giảm cân'!$B11)=0,0,'Công cụ theo dõi giảm cân'!$B11)),\"\")","v":"2022-02-09"},{"$f":"IFERROR(IF(A8,0,IF(LEN('Công cụ theo dõi giảm cân'!$C11)=0,0,'Công cụ theo dõi giảm cân'!$C11)),\"\")","v":176.5},{"$nulls":4},"2022-04-01","2022-04-30",{"$f":"IFERROR(AVERAGEIFS(Cân_nặng[CÂN NẶNG],Cân_nặng[NGÀY],\">=\"&$H8,Cân_nặng[NGÀY],\"<=\"&$I8),NA())","v":172}]
[{"$f":"IF((LEN('Công cụ theo dõi giảm cân'!$C12)=0),TRUE)","v":false},{"$f":"IFERROR(IF(A9,0,IF(LEN('Công cụ theo dõi giảm cân'!$B12)=0,0,'Công cụ theo dõi giảm cân'!$B12)),\"\")","v":"2022-02-16"},{"$f":"IFERROR(IF(A9,0,IF(LEN('Công cụ theo dõi giảm cân'!$C12)=0,0,'Công cụ theo dõi giảm cân'!$C12)),\"\")","v":176.1},{"$nulls":4},{"$error":"#N/A"},{"$error":"#N/A"},{"$f":"IFERROR(AVERAGEIFS(Cân_nặng[CÂN NẶNG],Cân_nặng[NGÀY],\">=\"&$H9,Cân_nặng[NGÀY],\"<=\"&$I9),NA())","v":{"$error":"#N/A"}}]
[{"$f":"IF((LEN('Công cụ theo dõi giảm cân'!$C13)=0),TRUE)","v":false},{"$f":"IFERROR(IF(A10,0,IF(LEN('Công cụ theo dõi giảm cân'!$B13)=0,0,'Công cụ theo dõi giảm cân'!$B13)),\"\")","v":"2022-02-23"},{"$f":"IFERROR(IF(A10,0,IF(LEN('Công cụ theo dõi giảm cân'!$C13)=0,0,'Công cụ theo dõi giảm cân'!$C13)),\"\")","v":174},{"$nulls":4},{"$error":"#N/A"},{"$error":"#N/A"},{"$f":"IFERROR(AVERAGEIFS(Cân_nặng[CÂN NẶNG],Cân_nặng[NGÀY],\">=\"&$H10,Cân_nặng[NGÀY],\"<=\"&$I10),NA())","v":{"$error":"#N/A"}}]
[{"$f":"IF((LEN('Công cụ theo dõi giảm cân'!$C14)=0),TRUE)","v":false},{"$f":"IFERROR(IF(A11,0,IF(LEN('Công cụ theo dõi giảm cân'!$B14)=0,0,'Công cụ theo dõi giảm cân'!$B14)),\"\")","v":"2022-03-02"},{"$f":"IFERROR(IF(A11,0,IF(LEN('Công cụ theo dõi giảm cân'!$C14)=0,0,'Công cụ theo dõi giảm cân'!$C14)),\"\")","v":173.5},{"$nulls":4},{"$error":"#N/A"},{"$error":"#N/A"},{"$f":"IFERROR(AVERAGEIFS(Cân_nặng[CÂN NẶNG],Cân_nặng[NGÀY],\">=\"&$H11,Cân_nặng[NGÀY],\"<=\"&$I11),NA())","v":{"$error":"#N/A"}},{"$nulls":6},{"$f":"MAX($B:$B)","v":"2022-04-06"}]
[{"$f":"IF((LEN('Công cụ theo dõi giảm cân'!$C15)=0),TRUE)","v":false},{"$f":"IFERROR(IF(A12,0,IF(LEN('Công cụ theo dõi giảm cân'!$B15)=0,0,'Công cụ theo dõi giảm cân'!$B15)),\"\")","v":"2022-03-09"},{"$f":"IFERROR(IF(A12,0,IF(LEN('Công cụ theo dõi giảm cân'!$C15)=0,0,'Công cụ theo dõi giảm cân'!$C15)),\"\")","v":173},{"$nulls":4},{"$error":"#N/A"},{"$error":"#N/A"},{"$f":"IFERROR(AVERAGEIFS(Cân_nặng[CÂN NẶNG],Cân_nặng[NGÀY],\">=\"&$H12,Cân_nặng[NGÀY],\"<=\"&$I12),NA())","v":{"$error":"#N/A"}}]
[{"$f":"IF((LEN('Công cụ theo dõi giảm cân'!$C16)=0),TRUE)","v":false},{"$f":"IFERROR(IF(A13,0,IF(LEN('Công cụ theo dõi giảm cân'!$B16)=0,0,'Công cụ theo dõi giảm cân'!$B16)),\"\")","v":"2022-03-16"},{"$f":"IFERROR(IF(A13,0,IF(LEN('Công cụ theo dõi giảm cân'!$C16)=0,0,'Công cụ theo dõi giảm cân'!$C16)),\"\")","v":172},{"$nulls":4},{"$error":"#N/A"},{"$error":"#N/A"},{"$f":"IFERROR(AVERAGEIFS(Cân_nặng[CÂN NẶNG],Cân_nặng[NGÀY],\">=\"&$H13,Cân_nặng[NGÀY],\"<=\"&$I13),NA())","v":{"$error":"#N/A"}}]
[{"$f":"IF((LEN('Công cụ theo dõi giảm cân'!$C17)=0),TRUE)","v":false},{"$f":"IFERROR(IF(A14,0,IF(LEN('Công cụ theo dõi giảm cân'!$B17)=0,0,'Công cụ theo dõi giảm cân'!$B17)),\"\")","v":"2022-03-23"},{"$f":"IFERROR(IF(A14,0,IF(LEN('Công cụ theo dõi giảm cân'!$C17)=0,0,'Công cụ theo dõi giảm cân'!$C17)),\"\")","v":172},{"$nulls":4},{"$error":"#N/A"},{"$error":"#N/A"},{"$f":"IFERROR(AVERAGEIFS(Cân_nặng[CÂN NẶNG],Cân_nặng[NGÀY],\">=\"&$H14,Cân_nặng[NGÀY],\"<=\"&$I14),NA())","v":{"$error":"#N/A"}}]
[{"$f":"IF((LEN('Công cụ theo dõi giảm cân'!$C18)=0),TRUE)","v":false},{"$f":"IFERROR(IF(A15,0,IF(LEN('Công cụ theo dõi giảm cân'!$B18)=0,0,'Công cụ theo dõi giảm cân'!$B18)),\"\")","v":"2022-03-30"},{"$f":"IFERROR(IF(A15,0,IF(LEN('Công cụ theo dõi giảm cân'!$C18)=0,0,'Công cụ theo dõi giảm cân'!$C18)),\"\")","v":173},{"$nulls":4},{"$error":"#N/A"},{"$error":"#N/A"},{"$f":"IFERROR(AVERAGEIFS(Cân_nặng[CÂN NẶNG],Cân_nặng[NGÀY],\">=\"&$H15,Cân_nặng[NGÀY],\"<=\"&$I15),NA())","v":{"$error":"#N/A"}}]
[{"$f":"IF((LEN('Công cụ theo dõi giảm cân'!$C19)=0),TRUE)","v":false},{"$f":"IFERROR(IF(A16,0,IF(LEN('Công cụ theo dõi giảm cân'!$B19)=0,0,'Công cụ theo dõi giảm cân'!$B19)),\"\")","v":"2022-04-06"},{"$f":"IFERROR(IF(A16,0,IF(LEN('Công cụ theo dõi giảm cân'!$C19)=0,0,'Công cụ theo dõi giảm cân'!$C19)),\"\")","v":172},{"$nulls":4},{"$error":"#N/A"},{"$error":"#N/A"},{"$f":"IFERROR(AVERAGEIFS(Cân_nặng[CÂN NẶNG],Cân_nặng[NGÀY],\">=\"&$H16,Cân_nặng[NGÀY],\"<=\"&$I16),NA())","v":{"$error":"#N/A"}}]
[{"$f":"IF((LEN('Công cụ theo dõi giảm cân'!$C20)=0),TRUE)","v":true},{"$f":"IFERROR(IF(A17,0,IF(LEN('Công cụ theo dõi giảm cân'!$B20)=0,0,'Công cụ theo dõi giảm cân'!$B20)),\"\")","v":"00:00:00"},{"$f":"IFERROR(IF(A17,0,IF(LEN('Công cụ theo dõi giảm cân'!$C20)=0,0,'Công cụ theo dõi giảm cân'!$C20)),\"\")","v":0},{"$nulls":4},{"$error":"#N/A"},{"$error":"#N/A"},{"$f":"IFERROR(AVERAGEIFS(Cân_nặng[CÂN NẶNG],Cân_nặng[NGÀY],\">=\"&$H17,Cân_nặng[NGÀY],\"<=\"&$I17),NA())","v":{"$error":"#N/A"}}]
[{"$f":"IF((LEN('Công cụ theo dõi giảm cân'!$C21)=0),TRUE)","v":true},{"$f":"IFERROR(IF(A18,0,IF(LEN('Công cụ theo dõi giảm cân'!$B21)=0,0,'Công cụ theo dõi giảm cân'!$B21)),\"\")","v":"00:00:00"},{"$f":"IFERROR(IF(A18,0,IF(LEN('Công cụ theo dõi giảm cân'!$C21)=0,0,'Công cụ theo dõi giảm cân'!$C21)),\"\")","v":0},{"$nulls":4},{"$error":"#N/A"},{"$error":"#N/A"},{"$f":"IFERROR(AVERAGEIFS(Cân_nặng[CÂN NẶNG],Cân_nặng[NGÀY],\">=\"&$H18,Cân_nặng[NGÀY],\"<=\"&$I18),NA())","v":{"$error":"#N/A"}}]
[{"$f":"IF((LEN('Công cụ theo dõi giảm cân'!$C22)=0),TRUE)","v":true},{"$f":"IFERROR(IF(A19,0,IF(LEN('Công cụ theo dõi giảm cân'!$B22)=0,0,'Công cụ theo dõi giảm cân'!$B22)),\"\")","v":"00:00:00"},{"$f":"IFERROR(IF(A19,0,IF(LEN('Công cụ theo dõi giảm cân'!$C22)=0,0,'Công cụ theo dõi giảm cân'!$C22)),\"\")","v":0},{"$nulls":4},{"$error":"#N/A"},{"$error":"#N/A"},{"$f":"IFERROR(AVERAGEIFS(Cân_nặng[CÂN NẶNG],Cân_nặng[NGÀY],\">=\"&$H19,Cân_nặng[NGÀY],\"<=\"&$I19),NA())","v":{"$error":"#N/A"}}]
[{"$f":"IF((LEN('Công cụ theo dõi giảm cân'!$C23)=0),TRUE)","v":true},{"$f":"IFERROR(IF(A20,0,IF(LEN('Công cụ theo dõi giảm cân'!$B23)=0,0,'Công cụ theo dõi giảm cân'!$B23)),\"\")","v":"00:00:00"},{"$f":"IFERROR(IF(A20,0,IF(LEN('Công cụ theo dõi giảm cân'!$C23)=0,0,'Công cụ theo dõi giảm cân'!$C23)),\"\")","v":0},{"$nulls":4},{"$error":"#N/A"},{"$error":"#N/A"},{"$f":"IFERROR(AVERAGEIFS(Cân_nặng[CÂN NẶNG],Cân_nặng[NGÀY],\">=\"&$H20,Cân_nặng[NGÀY],\"<=\"&$I20),NA())","v":{"$error":"#N/A"}}]
[{"$f":"IF((LEN('Công cụ theo dõi giảm cân'!$C24)=0),TRUE)","v":true},{"$f":"IFERROR(IF(A21,0,IF(LEN('Công cụ theo dõi giảm cân'!$B24)=0,0,'Công cụ theo dõi giảm cân'!$B24)),\"\")","v":"00:00:00"},{"$f":"IFERROR(IF(A21,0,IF(LEN('Công cụ theo dõi giảm cân'!$C24)=0,0,'Công cụ theo dõi giảm cân'!$C24)),\"\")","v":0},{"$nulls":4},{"$error":"#N/A"},{"$error":"#N/A"},{"$f":"IFERROR(AVERAGEIFS(Cân_nặng[CÂN NẶNG],Cân_nặng[NGÀY],\">=\"&$H21,Cân_nặng[NGÀY],\"<=\"&$I21),NA())","v":{"$error":"#N/A"}}]
[{"$f":"IF((LEN('Công cụ theo dõi giảm cân'!$C25)=0),TRUE)","v":true},{"$f":"IFERROR(IF(A22,0,IF(LEN('Công cụ theo dõi giảm cân'!$B25)=0,0,'Công cụ theo dõi giảm cân'!$B25)),\"\")","v":"00:00:00"},{"$f":"IFERROR(IF(A22,0,IF(LEN('Công cụ theo dõi giảm cân'!$C25)=0,0,'Công cụ theo dõi giảm cân'!$C25)),\"\")","v":0},{"$nulls":4},{"$error":"#N/A"},{"$error":"#N/A"},{"$f":"IFERROR(AVERAGEIFS(Cân_nặng[CÂN NẶNG],Cân_nặng[NGÀY],\">=\"&$H22,Cân_nặng[NGÀY],\"<=\"&$I22),NA())","v":{"$error":"#N/A"}}]
[{"$f":"IF((LEN('Công cụ theo dõi giảm cân'!$C26)=0),TRUE)","v":true},{"$f":"IFERROR(IF(A23,0,IF(LEN('Công cụ theo dõi giảm cân'!$B26)=0,0,'Công cụ theo dõi giảm cân'!$B26)),\"\")","v":"00:00:00"},{"$f":"IFERROR(IF(A23,0,IF(LEN('Công cụ theo dõi giảm cân'!$C26)=0,0,'Công cụ theo dõi giảm cân'!$C26)),\"\")","v":0},{"$nulls":4},{"$error":"#N/A"},{"$error":"#N/A"},{"$f":"IFERROR(AVERAGEIFS(Cân_nặng[CÂN NẶNG],Cân_nặng[NGÀY],\">=\"&$H23,Cân_nặng[NGÀY],\"<=\"&$I23),NA())","v":{"$error":"#N/A"}}]
[{"$f":"IF((LEN('Công cụ theo dõi giảm cân'!$C27)=0),TRUE)","v":true},{"$f":"IFERROR(IF(A24,0,IF(LEN('Công cụ theo dõi giảm cân'!$B27)=0,0,'Công cụ theo dõi giảm cân'!$B27)),\"\")","v":"00:00:00"},{"$f":"IFERROR(IF(A24,0,IF(LEN('Công cụ theo dõi giảm cân'!$C27)=0,0,'Công cụ theo dõi giảm cân'!$C27)),\"\")","v":0},{"$nulls":4},{"$error":"#N/A"},{"$error":"#N/A"},{"$f":"IFERROR(AVERAGEIFS(Cân_nặng[CÂN NẶNG],Cân_nặng[NGÀY],\">=\"&$H24,Cân_nặng[NGÀY],\"<=\"&$I24),NA())","v":{"$error":"#N/A"}}]
[{"$f":"IF((LEN('Công cụ theo dõi giảm cân'!$C28)=0),TRUE)","v":true},{"$f":"IFERROR(IF(A25,0,IF(LEN('Công cụ theo dõi giảm cân'!$B28)=0,0,'Công cụ theo dõi giảm cân'!$B28)),\"\")","v":"00:00:00"},{"$f":"IFERROR(IF(A25,0,IF(LEN('Công cụ theo dõi giảm cân'!$C28)=0,0,'Công cụ theo dõi giảm cân'!$C28)),\"\")","v":0},{"$nulls":4},{"$error":"#N/A"},{"$error":"#N/A"},{"$f":"IFERROR(AVERAGEIFS(Cân_nặng[CÂN NẶNG],Cân_nặng[NGÀY],\">=\"&$H25,Cân_nặng[NGÀY],\"<=\"&$I25),NA())","v":{"$error":"#N/A"}}]
[{"$f":"IF((LEN('Công cụ theo dõi giảm cân'!$C29)=0),TRUE)","v":true},{"$f":"IFERROR(IF(A26,0,IF(LEN('Công cụ theo dõi giảm cân'!$B29)=0,0,'Công cụ theo dõi giảm cân'!$B29)),\"\")","v":"00:00:00"},{"$f":"IFERROR(IF(A26,0,IF(LEN('Công cụ theo dõi giảm cân'!$C29)=0,0,'Công cụ theo dõi giảm cân'!$C29)),\"\")","v":0},{"$nulls":4},{"$error":"#N/A"},{"$error":"#N/A"},{"$f":"IFERROR(AVERAGEIFS(Cân_nặng[CÂN NẶNG],Cân_nặng[NGÀY],\">=\"&$H26,Cân_nặng[NGÀY],\"<=\"&$I26),NA())","v":{"$error":"#N/A"}}]
[{"$f":"IF((LEN('Công cụ theo dõi giảm cân'!$C30)=0),TRUE)","v":true},{"$f":"IFERROR(IF(A27,0,IF(LEN('Công cụ theo dõi giảm cân'!$B30)=0,0,'Công cụ theo dõi giảm cân'!$B30)),\"\")","v":"00:00:00"},{"$f":"IFERROR(IF(A27,0,IF(LEN('Công cụ theo dõi giảm cân'!$C30)=0,0,'Công cụ theo dõi giảm cân'!$C30)),\"\")","v":0},{"$nulls":4},{"$error":"#N/A"},{"$error":"#N/A"},{"$f":"IFERROR(AVERAGEIFS(Cân_nặng[CÂN NẶNG],Cân_nặng[NGÀY],\">=\"&$H27,Cân_nặng[NGÀY],\"<=\"&$I27),NA())","v":{"$error":"#N/A"}}]
[{"$f":"IF((LEN('Công cụ theo dõi giảm cân'!$C31)=0),TRUE)","v":true},{"$f":"IFERROR(IF(A28,0,IF(LEN('Công cụ theo dõi giảm cân'!$B31)=0,0,'Công cụ theo dõi giảm cân'!$B31)),\"\")","v":"00:00:00"},{"$f":"IFERROR(IF(A28,0,IF(LEN('Công cụ theo dõi giảm cân'!$C31)=0,0,'Công cụ theo dõi giảm cân'!$C31)),\"\")","v":0},{"$nulls":4},{"$error":"#N/A"},{"$error":"#N/A"},{"$f":"IFERROR(AVERAGEIFS(Cân_nặng[CÂN NẶNG],Cân_nặng[NGÀY],\">=\"&$H28,Cân_nặng[NGÀY],\"<=\"&$I28),NA())","v":{"$error":"#N/A"}}]
[{"$f":"IF((LEN('Công cụ theo dõi giảm cân'!$C32)=0),TRUE)","v":true},{"$f":"IFERROR(IF(A29,0,IF(LEN('Công cụ theo dõi giảm cân'!$B32)=0,0,'Công cụ theo dõi giảm cân'!$B32)),\"\")","v":"00:00:00"},{"$f":"IFERROR(IF(A29,0,IF(LEN('Công cụ theo dõi giảm cân'!$C32)=0,0,'Công cụ theo dõi giảm cân'!$C32)),\"\")","v":0}]
[{"$f":"IF((LEN('Công cụ theo dõi giảm cân'!$C33)=0),TRUE)","v":true},{"$f":"IFERROR(IF(A30,0,IF(LEN('Công cụ theo dõi giảm cân'!$B33)=0,0,'Công cụ theo dõi giảm cân'!$B33)),\"\")","v":"00:00:00"},{"$f":"IFERROR(IF(A30,0,IF(LEN('Công cụ theo dõi giảm cân'!$C33)=0,0,'Công cụ theo dõi giảm cân'!$C33)),\"\")","v":0}]
[{"$f":"IF((LEN('Công cụ theo dõi giảm cân'!$C34)=0),TRUE)","v":true},{"$f":"IFERROR(IF(A31,0,IF(LEN('Công cụ theo dõi giảm cân'!$B34)=0,0,'Công cụ theo dõi giảm cân'!$B34)),\"\")","v":"00:00:00"},{"$f":"IFERROR(IF(A31,0,IF(LEN('Công cụ theo dõi giảm cân'!$C34)=0,0,'Công cụ theo dõi giảm cân'!$C34)),\"\")","v":0}]
[{"$f":"IF((LEN('Công cụ theo dõi giảm cân'!$C35)=0),TRUE)","v":true},{"$f":"IFERROR(IF(A32,0,IF(LEN('Công cụ theo dõi giảm cân'!$B35)=0,0,'Công cụ theo dõi giảm cân'!$B35)),\"\")","v":"00:00:00"},{"$f":"IFERROR(IF(A32,0,IF(LEN('Công cụ theo dõi giảm cân'!$C35)=0,0,'Công cụ theo dõi giảm cân'!$C35)),\"\")","v":0}]
[{"$f":"IF((LEN('Công cụ theo dõi giảm cân'!$C36)=0),TRUE)","v":true},{"$f":"IFERROR(IF(A33,0,IF(LEN('Công cụ theo dõi giảm cân'!$B36)=0,0,'Công cụ theo dõi giảm cân'!$B36)),\"\")","v":"00:00:00"},{"$f":"IFERROR(IF(A33,0,IF(LEN('Công cụ theo dõi giảm cân'!$C36)=0,0,'Công cụ theo dõi giảm cân'!$C36)),\"\")","v":0}]
[{"$f":"IF((LEN('Công cụ theo dõi giảm cân'!$C37)=0),TRUE)","v":true},{"$f":"IFERROR(IF(A34,0,IF(LEN('Công cụ theo dõi giảm cân'!$B37)=0,0,'Công cụ theo dõi giảm cân'!$B37)),\"\")","v":"00:00:00"},{"$f":"IFERROR(IF(A34,0,IF(LEN('Công cụ theo dõi giảm cân'!$C37)=0,0,'Công cụ theo dõi giảm cân'!$C37)),\"\")","v":0}]
[{"$f":"IF((LEN('Công cụ theo dõi giảm cân'!$C38)=0),TRUE)","v":true},{"$f":"IFERROR(IF(A35,0,IF(LEN('Công cụ theo dõi giảm cân'!$B38)=0,0,'Công cụ theo dõi giảm cân'!$B38)),\"\")","v":"00:00:00"},{"$f":"IFERROR(IF(A35,0,IF(LEN('Công cụ theo dõi giảm cân'!$C38)=0,0,'Công cụ theo dõi giảm cân'!$C38)),\"\")","v":0}]
[{"$f":"IF((LEN('Công cụ theo dõi giảm cân'!$C39)=0),TRUE)","v":true},{"$f":"IFERROR(IF(A36,0,IF(LEN('Công cụ theo dõi giảm cân'!$B39)=0,0,'Công cụ theo dõi giảm cân'!$B39)),\"\")","v":"00:00:00"},{"$f":"IFERROR(IF(A36,0,IF(LEN('Công cụ theo dõi giảm cân'!$C39)=0,0,'Công cụ theo dõi giảm cân'!$C39)),\"\")","v":0}]
[{"$f":"IF((LEN('Công cụ theo dõi giảm cân'!$C40)=0),TRUE)","v":true},{"$f":"IFERROR(IF(A37,0,IF(LEN('Công cụ theo dõi giảm cân'!$B40)=0,0,'Công cụ theo dõi giảm cân'!$B40)),\"\")","v":"00:00:00"},{"$f":"IFERROR(IF(A37,0,IF(LEN('Công cụ theo dõi giảm cân'!$C40)=0,0,'Công cụ theo dõi giảm cân'!$C40)),\"\")","v":0}]
[{"$f":"IF((LEN('Công cụ theo dõi giảm cân'!$C41)=0),TRUE)","v":true},{"$f":"IFERROR(IF(A38,0,IF(LEN('Công cụ theo dõi giảm cân'!$B41)=0,0,'Công cụ theo dõi giảm cân'!$B41)),\"\")","v":"00:00:00"},{"$f":"IFERROR(IF(A38,0,IF(LEN('Công cụ theo dõi giảm cân'!$C41)=0,0,'Công cụ theo dõi giảm cân'!$C41)),\"\")","v":0}]
[{"$f":"IF((LEN('Công cụ theo dõi giảm cân'!$C42)=0),TRUE)","v":true},{"$f":"IFERROR(IF(A39,0,IF(LEN('Công cụ theo dõi giảm cân'!$B42)=0,0,'Công cụ theo dõi giảm cân'!$B42)),\"\")","v":"00:00:00"},{"$f":"IFERROR(IF(A39,0,IF(LEN('Công cụ theo dõi giảm cân'!$C42)=0,0,'Công cụ theo dõi giảm cân'!$C42)),\"\")","v":0}]
[{"$f":"IF((LEN('Công cụ theo dõi giảm cân'!$C43)=0),TRUE)","v":true},{"$f":"IFERROR(IF(A40,0,IF(LEN('Công cụ theo dõi giảm cân'!$B43)=0,0,'Công cụ theo dõi giảm cân'!$B43)),\"\")","v":"00:00:00"},{"$f":"IFERROR(IF(A40,0,IF(LEN('Công cụ theo dõi giảm cân'!$C43)=0,0,'Công cụ theo dõi giảm cân'!$C43)),\"\")","v":0}]
[{"$f":"IF((LEN('Công cụ theo dõi giảm cân'!$C44)=0),TRUE)","v":true},{"$f":"IFERROR(IF(A41,0,IF(LEN('Công cụ theo dõi giảm cân'!$B44)=0,0,'Công cụ theo dõi giảm cân'!$B44)),\"\")","v":"00:00:00"},{"$f":"IFERROR(IF(A41,0,IF(LEN('Công cụ theo dõi giảm cân'!$C44)=0,0,'Công cụ theo dõi giảm cân'!$C44)),\"\")","v":0}]
[{"$f":"IF((LEN('Công cụ theo dõi giảm cân'!$C45)=0),TRUE)","v":true},{"$f":"IFERROR(IF(A42,0,IF(LEN('Công cụ theo dõi giảm cân'!$B45)=0,0,'Công cụ theo dõi giảm cân'!$B45)),\"\")","v":"00:00:00"},{"$f":"IFERROR(IF(A42,0,IF(LEN('Công cụ theo dõi giảm cân'!$C45)=0,0,'Công cụ theo dõi giảm cân'!$C45)),\"\")","v":0}]
[{"$f":"IF((LEN('Công cụ theo dõi giảm cân'!$C46)=0),TRUE)","v":true},{"$f":"IFERROR(IF(A43,0,IF(LEN('Công cụ theo dõi giảm cân'!$B46)=0,0,'Công cụ theo dõi giảm cân'!$B46)),\"\")","v":"00:00:00"},{"$f":"IFERROR(IF(A43,0,IF(LEN('Công cụ theo dõi giảm cân'!$C46)=0,0,'Công cụ theo dõi giảm cân'!$C46)),\"\")","v":0}]
[{"$f":"IF((LEN('Công cụ theo dõi giảm cân'!$C47)=0),TRUE)","v":true},{"$f":"IFERROR(IF(A44,0,IF(LEN('Công cụ theo dõi giảm cân'!$B47)=0,0,'Công cụ theo dõi giảm cân'!$B47)),\"\")","v":"00:00:00"},{"$f":"IFERROR(IF(A44,0,IF(LEN('Công cụ theo dõi giảm cân'!$C47)=0,0,'Công cụ theo dõi giảm cân'!$C47)),\"\")","v":0}]
[{"$f":"IF((LEN('Công cụ theo dõi giảm cân'!$C48)=0),TRUE)","v":true},{"$f":"IFERROR(IF(A45,0,IF(LEN('Công cụ theo dõi giảm cân'!$B48)=0,0,'Công cụ theo dõi giảm cân'!$B48)),\"\")","v":"00:00:00"},{"$f":"IFERROR(IF(A45,0,IF(LEN('Công cụ theo dõi giảm cân'!$C48)=0,0,'Công cụ theo dõi giảm cân'!$C48)),\"\")","v":0}]
[{"$f":"IF((LEN('Công cụ theo dõi giảm cân'!$C49)=0),TRUE)","v":true},{"$f":"IFERROR(IF(A46,0,IF(LEN('Công cụ theo dõi giảm cân'!$B49)=0,0,'Công cụ theo dõi giảm cân'!$B49)),\"\")","v":"00:00:00"},{"$f":"IFERROR(IF(A46,0,IF(LEN('Công cụ theo dõi giảm cân'!$C49)=0,0,'Công cụ theo dõi giảm cân'!$C49)),\"\")","v":0}]
[{"$f":"IF((LEN('Công cụ theo dõi giảm cân'!$C50)=0),TRUE)","v":true},{"$f":"IFERROR(IF(A47,0,IF(LEN('Công cụ theo dõi giảm cân'!$B50)=0,0,'Công cụ theo dõi giảm cân'!$B50)),\"\")","v":"00:00:00"},{"$f":"IFERROR(IF(A47,0,IF(LEN('Công cụ theo dõi giảm cân'!$C50)=0,0,'Công cụ theo dõi giảm cân'!$C50)),\"\")","v":0}]
[{"$f":"IF((LEN('Công cụ theo dõi giảm cân'!$C51)=0),TRUE)","v":true},{"$f":"IFERROR(IF(A48,0,IF(LEN('Công cụ theo dõi giảm cân'!$B51)=0,0,'Công cụ theo dõi giảm cân'!$B51)),\"\")","v":"00:00:00"},{"$f":"IFERROR(IF(A48,0,IF(LEN('Công cụ theo dõi giảm cân'!$C51)=0,0,'Công cụ theo dõi giảm cân'!$C51)),\"\")","v":0}]
[{"$f":"IF((LEN('Công cụ theo dõi giảm cân'!$C52)=0),TRUE)","v":true},{"$f":"IFERROR(IF(A49,0,IF(LEN('Công cụ theo dõi giảm cân'!$B52)=0,0,'Công cụ theo dõi giảm cân'!$B52)),\"\")","v":"00:00:00"},{"$f":"IFERROR(IF(A49,0,IF(LEN('Công cụ theo dõi giảm cân'!$C52)=0,0,'Công cụ theo dõi giảm cân'!$C52)),\"\")","v":0}]
[{"$f":"IF((LEN('Công cụ theo dõi giảm cân'!$C53)=0),TRUE)","v":true},{"$f":"IFERROR(IF(A50,0,IF(LEN('Công cụ theo dõi giảm cân'!$B53)=0,0,'Công cụ theo dõi giảm cân'!$B53)),\"\")","v":"00:00:00"},{"$f":"IFERROR(IF(A50,0,IF(LEN('Công cụ theo dõi giảm cân'!$C53)=0,0,'Công cụ theo dõi giảm cân'!$C53)),\"\")","v":0}]
[{"$f":"IF((LEN('Công cụ theo dõi giảm cân'!$C54)=0),TRUE)","v":true},{"$f":"IFERROR(IF(A51,0,IF(LEN('Công cụ theo dõi giảm cân'!$B54)=0,0,'Công cụ theo dõi giảm cân'!$B54)),\"\")","v":"00:00:00"},{"$f":"IFERROR(IF(A51,0,IF(LEN('Công cụ theo dõi giảm cân'!$C54)=0,0,'Công cụ theo dõi giảm cân'!$C54)),\"\")","v":0}]
[{"$f":"IF((LEN('Công cụ theo dõi giảm cân'!$C55)=0),TRUE)","v":true},{"$f":"IFERROR(IF(A52,0,IF(LEN('Công cụ theo dõi giảm cân'!$B55)=0,0,'Công cụ theo dõi giảm cân'!$B55)),\"\")","v":"00:00:00"},{"$f":"IFERROR(IF(A52,0,IF(LEN('Công cụ theo dõi giảm cân'!$C55)=0,0,'Công cụ theo dõi giảm cân'!$C55)),\"\")","v":0}]
[{"$f":"IF((LEN('Công cụ theo dõi giảm cân'!$C56)=0),TRUE)","v":true},{"$f":"IFERROR(IF(A53,0,IF(LEN('Công cụ theo dõi giảm cân'!$B56)=0,0,'Công cụ theo dõi giảm cân'!$B56)),\"\")","v":"00:00:00"},{"$f":"IFERROR(IF(A53,0,IF(LEN('Công cụ theo dõi giảm cân'!$C56)=0,0,'Công cụ theo dõi giảm cân'!$C56)),\"\")","v":0}]
[{"$f":"IF((LEN('Công cụ theo dõi giảm cân'!$C57)=0),TRUE)","v":true},{"$f":"IFERROR(IF(A54,0,IF(LEN('Công cụ theo dõi giảm cân'!$B57)=0,0,'Công cụ theo dõi giảm cân'!$B57)),\"\")","v":"00:00:00"},{"$f":"IFERROR(IF(A54,0,IF(LEN('Công cụ theo dõi giảm cân'!$C57)=0,0,'Công cụ theo dõi giảm cân'!$C57)),\"\")","v":0}]
[{"$f":"IF((LEN('Công cụ theo dõi giảm cân'!$C58)=0),TRUE)","v":true},{"$f":"IFERROR(IF(A55,0,IF(LEN('Công cụ theo dõi giảm cân'!$B58)=0,0,'Công cụ theo dõi giảm cân'!$B58)),\"\")","v":"00:00:00"},{"$f":"IFERROR(IF(A55,0,IF(LEN('Công cụ theo dõi giảm cân'!$C58)=0,0,'Công cụ theo dõi giảm cân'!$C58)),\"\")","v":0}]
[{"$f":"IF((LEN('Công cụ theo dõi giảm cân'!$C59)=0),TRUE)","v":true},{"$f":"IFERROR(IF(A56,0,IF(LEN('Công cụ theo dõi giảm cân'!$B59)=0,0,'Công cụ theo dõi giảm cân'!$B59)),\"\")","v":"00:00:00"},{"$f":"IFERROR(IF(A56,0,IF(LEN('Công cụ theo dõi giảm cân'!$C59)=0,0,'Công cụ theo dõi giảm cân'!$C59)),\"\")","v":0}]
[{"$f":"IF((LEN('Công cụ theo dõi giảm cân'!$C60)=0),TRUE)","v":true},{"$f":"IFERROR(IF(A57,0,IF(LEN('Công cụ theo dõi giảm cân'!$B60)=0,0,'Công cụ theo dõi giảm cân'!$B60)),\"\")","v":"00:00:00"},{"$f":"IFERROR(IF(A57,0,IF(LEN('Công cụ theo dõi giảm cân'!$C60)=0,0,'Công cụ theo dõi giảm cân'!$C60)),\"\")","v":0}]
[{"$f":"IF((LEN('Công cụ theo dõi giảm cân'!$C61)=0),TRUE)","v":true},{"$f":"IFERROR(IF(A58,0,IF(LEN('Công cụ theo dõi giảm cân'!$B61)=0,0,'Công cụ theo dõi giảm cân'!$B61)),\"\")","v":"00:00:00"},{"$f":"IFERROR(IF(A58,0,IF(LEN('Công cụ theo dõi giảm cân'!$C61)=0,0,'Công cụ theo dõi giảm cân'!$C61)),\"\")","v":0}]
[{"$f":"IF((LEN('Công cụ theo dõi giảm cân'!$C62)=0),TRUE)","v":true},{"$f":"IFERROR(IF(A59,0,IF(LEN('Công cụ theo dõi giảm cân'!$B62)=0,0,'Công cụ theo dõi giảm cân'!$B62)),\"\")","v":"00:00:00"},{"$f":"IFERROR(IF(A59,0,IF(LEN('Công cụ theo dõi giảm cân'!$C62)=0,0,'Công cụ theo dõi giảm cân'!$C62)),\"\")","v":0}]
[{"$f":"IF((LEN('Công cụ theo dõi giảm cân'!$C63)=0),TRUE)","v":true},{"$f":"IFERROR(IF(A60,0,IF(LEN('Công cụ theo dõi giảm cân'!$B63)=0,0,'Công cụ theo dõi giảm cân'!$B63)),\"\")","v":"00:00:00"},{"$f":"IFERROR(IF(A60,0,IF(LEN('Công cụ theo dõi giảm cân'!$C63)=0,0,'Công cụ theo dõi giảm cân'!$C63)),\"\")","v":0}]
[{"$f":"IF((LEN('Công cụ theo dõi giảm cân'!$C64)=0),TRUE)","v":true},{"$f":"IFERROR(IF(A61,0,IF(LEN('Công cụ theo dõi giảm cân'!$B64)=0,0,'Công cụ theo dõi giảm cân'!$B64)),\"\")","v":"00:00:00"},{"$f":"IFERROR(IF(A61,0,IF(LEN('Công cụ theo dõi giảm cân'!$C64)=0,0,'Công cụ theo dõi giảm cân'!$C64)),\"\")","v":0}]
[{"$f":"IF((LEN('Công cụ theo dõi giảm cân'!$C65)=0),TRUE)","v":true},{"$f":"IFERROR(IF(A62,0,IF(LEN('Công cụ theo dõi giảm cân'!$B65)=0,0,'Công cụ theo dõi giảm cân'!$B65)),\"\")","v":"00:00:00"},{"$f":"IFERROR(IF(A62,0,IF(LEN('Công cụ theo dõi giảm cân'!$C65)=0,0,'Công cụ theo dõi giảm cân'!$C65)),\"\")","v":0}]
[{"$f":"IF((LEN('Công cụ theo dõi giảm cân'!$C66)=0),TRUE)","v":true},{"$f":"IFERROR(IF(A63,0,IF(LEN('Công cụ theo dõi giảm cân'!$B66)=0,0,'Công cụ theo dõi giảm cân'!$B66)),\"\")","v":"00:00:00"},{"$f":"IFERROR(IF(A63,0,IF(LEN('Công cụ theo dõi giảm cân'!$C66)=0,0,'Công cụ theo dõi giảm cân'!$C66)),\"\")","v":0}]
[{"$f":"IF((LEN('Công cụ theo dõi giảm cân'!$C67)=0),TRUE)","v":true},{"$f":"IFERROR(IF(A64,0,IF(LEN('Công cụ theo dõi giảm cân'!$B67)=0,0,'Công cụ theo dõi giảm cân'!$B67)),\"\")","v":"00:00:00"},{"$f":"IFERROR(IF(A64,0,IF(LEN('Công cụ theo dõi giảm cân'!$C67)=0,0,'Công cụ theo dõi giảm cân'!$C67)),\"\")","v":0}]
[{"$f":"IF((LEN('Công cụ theo dõi giảm cân'!$C68)=0),TRUE)","v":true},{"$f":"IFERROR(IF(A65,0,IF(LEN('Công cụ theo dõi giảm cân'!$B68)=0,0,'Công cụ theo dõi giảm cân'!$B68)),\"\")","v":"00:00:00"},{"$f":"IFERROR(IF(A65,0,IF(LEN('Công cụ theo dõi giảm cân'!$C68)=0,0,'Công cụ theo dõi giảm cân'!$C68)),\"\")","v":0}]
[{"$f":"IF((LEN('Công cụ theo dõi giảm cân'!$C69)=0),TRUE)","v":true},{"$f":"IFERROR(IF(A66,0,IF(LEN('Công cụ theo dõi giảm cân'!$B69)=0,0,'Công cụ theo dõi giảm cân'!$B69)),\"\")","v":"00:00:00"},{"$f":"IFERROR(IF(A66,0,IF(LEN('Công cụ theo dõi giảm cân'!$C69)=0,0,'Công cụ theo dõi giảm cân'!$C69)),\"\")","v":0}]
[{"$f":"IF((LEN('Công cụ theo dõi giảm cân'!$C70)=0),TRUE)","v":true},{"$f":"IFERROR(IF(A67,0,IF(LEN('Công cụ theo dõi giảm cân'!$B70)=0,0,'Công cụ theo dõi giảm cân'!$B70)),\"\")","v":"00:00:00"},{"$f":"IFERROR(IF(A67,0,IF(LEN('Công cụ theo dõi giảm cân'!$C70)=0,0,'Công cụ theo dõi giảm cân'!$C70)),\"\")","v":0}]
[{"$f":"IF((LEN('Công cụ theo dõi giảm cân'!$C71)=0),TRUE)","v":true},{"$f":"IFERROR(IF(A68,0,IF(LEN('Công cụ theo dõi giảm cân'!$B71)=0,0,'Công cụ theo dõi giảm cân'!$B71)),\"\")","v":"00:00:00"},{"$f":"IFERROR(IF(A68,0,IF(LEN('Công cụ theo dõi giảm cân'!$C71)=0,0,'Công cụ theo dõi giảm cân'!$C71)),\"\")","v":0}]
[{"$f":"IF((LEN('Công cụ theo dõi giảm cân'!$C72)=0),TRUE)","v":true},{"$f":"IFERROR(IF(A69,0,IF(LEN('Công cụ theo dõi giảm cân'!$B72)=0,0,'Công cụ theo dõi giảm cân'!$B72)),\"\")","v":"00:00:00"},{"$f":"IFERROR(IF(A69,0,IF(LEN('Công cụ theo dõi giảm cân'!$C72)=0,0,'Công cụ theo dõi giảm cân'!$C72)),\"\")","v":0}]
[{"$f":"IF((LEN('Công cụ theo dõi giảm cân'!$C73)=0),TRUE)","v":true},{"$f":"IFERROR(IF(A70,0,IF(LEN('Công cụ theo dõi giảm cân'!$B73)=0,0,'Công cụ theo dõi giảm cân'!$B73)),\"\")","v":"00:00:00"},{"$f":"IFERROR(IF(A70,0,IF(LEN('Công cụ theo dõi giảm cân'!$C73)=0,0,'Công cụ theo dõi giảm cân'!$C73)),\"\")","v":0}]
[{"$f":"IF((LEN('Công cụ theo dõi giảm cân'!$C74)=0),TRUE)","v":true},{"$f":"IFERROR(IF(A71,0,IF(LEN('Công cụ theo dõi giảm cân'!$B74)=0,0,'Công cụ theo dõi giảm cân'!$B74)),\"\")","v":"00:00:00"},{"$f":"IFERROR(IF(A71,0,IF(LEN('Công cụ theo dõi giảm cân'!$C74)=0,0,'Công cụ theo dõi giảm cân'!$C74)),\"\")","v":0}]
[{"$f":"IF((LEN('Công cụ theo dõi giảm cân'!$C75)=0),TRUE)","v":true},{"$f":"IFERROR(IF(A72,0,IF(LEN('Công cụ theo dõi giảm cân'!$B75)=0,0,'Công cụ theo dõi giảm cân'!$B75)),\"\")","v":"00:00:00"},{"$f":"IFERROR(IF(A72,0,IF(LEN('Công cụ theo dõi giảm cân'!$C75)=0,0,'Công cụ theo dõi giảm cân'!$C75)),\"\")","v":0}]
[{"$f":"IF((LEN('Công cụ theo dõi giảm cân'!$C76)=0),TRUE)","v":true},{"$f":"IFERROR(IF(A73,0,IF(LEN('Công cụ theo dõi giảm cân'!$B76)=0,0,'Công cụ theo dõi giảm cân'!$B76)),\"\")","v":"00:00:00"},{"$f":"IFERROR(IF(A73,0,IF(LEN('Công cụ theo dõi giảm cân'!$C76)=0,0,'Công cụ theo dõi giảm cân'!$C76)),\"\")","v":0}]
[{"$f":"IF((LEN('Công cụ theo dõi giảm cân'!$C77)=0),TRUE)","v":true},{"$f":"IFERROR(IF(A74,0,IF(LEN('Công cụ theo dõi giảm cân'!$B77)=0,0,'Công cụ theo dõi giảm cân'!$B77)),\"\")","v":"00:00:00"},{"$f":"IFERROR(IF(A74,0,IF(LEN('Công cụ theo dõi giảm cân'!$C77)=0,0,'Công cụ theo dõi giảm cân'!$C77)),\"\")","v":0}]
[{"$f":"IF((LEN('Công cụ theo dõi giảm cân'!$C78)=0),TRUE)","v":true},{"$f":"IFERROR(IF(A75,0,IF(LEN('Công cụ theo dõi giảm cân'!$B78)=0,0,'Công cụ theo dõi giảm cân'!$B78)),\"\")","v":"00:00:00"},{"$f":"IFERROR(IF(A75,0,IF(LEN('Công cụ theo dõi giảm cân'!$C78)=0,0,'Công cụ theo dõi giảm cân'!$C78)),\"\")","v":0}]
[{"$f":"IF((LEN('Công cụ theo dõi giảm cân'!$C79)=0),TRUE)","v":true},{"$f":"IFERROR(IF(A76,0,IF(LEN('Công cụ theo dõi giảm cân'!$B79)=0,0,'Công cụ theo dõi giảm cân'!$B79)),\"\")","v":"00:00:00"},{"$f":"IFERROR(IF(A76,0,IF(LEN('Công cụ theo dõi giảm cân'!$C79)=0,0,'Công cụ theo dõi giảm cân'!$C79)),\"\")","v":0}]
[{"$f":"IF((LEN('Công cụ theo dõi giảm cân'!$C80)=0),TRUE)","v":true},{"$f":"IFERROR(IF(A77,0,IF(LEN('Công cụ theo dõi giảm cân'!$B80)=0,0,'Công cụ theo dõi giảm cân'!$B80)),\"\")","v":"00:00:00"},{"$f":"IFERROR(IF(A77,0,IF(LEN('Công cụ theo dõi giảm cân'!$C80)=0,0,'Công cụ theo dõi giảm cân'!$C80)),\"\")","v":0}]
[{"$f":"IF((LEN('Công cụ theo dõi giảm cân'!$C81)=0),TRUE)","v":true},{"$f":"IFERROR(IF(A78,0,IF(LEN('Công cụ theo dõi giảm cân'!$B81)=0,0,'Công cụ theo dõi giảm cân'!$B81)),\"\")","v":"00:00:00"},{"$f":"IFERROR(IF(A78,0,IF(LEN('Công cụ theo dõi giảm cân'!$C81)=0,0,'Công cụ theo dõi giảm cân'!$C81)),\"\")","v":0}]
[{"$f":"IF((LEN('Công cụ theo dõi giảm cân'!$C82)=0),TRUE)","v":true},{"$f":"IFERROR(IF(A79,0,IF(LEN('Công cụ theo dõi giảm cân'!$B82)=0,0,'Công cụ theo dõi giảm cân'!$B82)),\"\")","v":"00:00:00"},{"$f":"IFERROR(IF(A79,0,IF(LEN('Công cụ theo dõi giảm cân'!$C82)=0,0,'Công cụ theo dõi giảm cân'!$C82)),\"\")","v":0}]
[{"$f":"IF((LEN('Công cụ theo dõi giảm cân'!$C83)=0),TRUE)","v":true},{"$f":"IFERROR(IF(A80,0,IF(LEN('Công cụ theo dõi giảm cân'!$B83)=0,0,'Công cụ theo dõi giảm cân'!$B83)),\"\")","v":"00:00:00"},{"$f":"IFERROR(IF(A80,0,IF(LEN('Công cụ theo dõi giảm cân'!$C83)=0,0,'Công cụ theo dõi giảm cân'!$C83)),\"\")","v":0}]
[{"$f":"IF((LEN('Công cụ theo dõi giảm cân'!$C84)=0),TRUE)","v":true},{"$f":"IFERROR(IF(A81,0,IF(LEN('Công cụ theo dõi giảm cân'!$B84)=0,0,'Công cụ theo dõi giảm cân'!$B84)),\"\")","v":"00:00:00"},{"$f":"IFERROR(IF(A81,0,IF(LEN('Công cụ theo dõi giảm cân'!$C84)=0,0,'Công cụ theo dõi giảm cân'!$C84)),\"\")","v":0}]
[{"$f":"IF((LEN('Công cụ theo dõi giảm cân'!$C85)=0),TRUE)","v":true},{"$f":"IFERROR(IF(A82,0,IF(LEN('Công cụ theo dõi giảm cân'!$B85)=0,0,'Công cụ theo dõi giảm cân'!$B85)),\"\")","v":"00:00:00"},{"$f":"IFERROR(IF(A82,0,IF(LEN('Công cụ theo dõi giảm cân'!$C85)=0,0,'Công cụ theo dõi giảm cân'!$C85)),\"\")","v":0}]
[{"$f":"IF((LEN('Công cụ theo dõi giảm cân'!$C86)=0),TRUE)","v":true},{"$f":"IFERROR(IF(A83,0,IF(LEN('Công cụ theo dõi giảm cân'!$B86)=0,0,'Công cụ theo dõi giảm cân'!$B86)),\"\")","v":"00:00:00"},{"$f":"IFERROR(IF(A83,0,IF(LEN('Công cụ theo dõi giảm cân'!$C86)=0,0,'Công cụ theo dõi giảm cân'!$C86)),\"\")","v":0}]
[{"$f":"IF((LEN('Công cụ theo dõi giảm cân'!$C87)=0),TRUE)","v":true},{"$f":"IFERROR(IF(A84,0,IF(LEN('Công cụ theo dõi giảm cân'!$B87)=0,0,'Công cụ theo dõi giảm cân'!$B87)),\"\")","v":"00:00:00"},{"$f":"IFERROR(IF(A84,0,IF(LEN('Công cụ theo dõi giảm cân'!$C87)=0,0,'Công cụ theo dõi giảm cân'!$C87)),\"\")","v":0}]
[{"$f":"IF((LEN('Công cụ theo dõi giảm cân'!$C88)=0),TRUE)","v":true},{"$f":"IFERROR(IF(A85,0,IF(LEN('Công cụ theo dõi giảm cân'!$B88)=0,0,'Công cụ theo dõi giảm cân'!$B88)),\"\")","v":"00:00:00"},{"$f":"IFERROR(IF(A85,0,IF(LEN('Công cụ theo dõi giảm cân'!$C88)=0,0,'Công cụ theo dõi giảm cân'!$C88)),\"\")","v":0}]
[{"$f":"IF((LEN('Công cụ theo dõi giảm cân'!$C89)=0),TRUE)","v":true},{"$f":"IFERROR(IF(A86,0,IF(LEN('Công cụ theo dõi giảm cân'!$B89)=0,0,'Công cụ theo dõi giảm cân'!$B89)),\"\")","v":"00:00:00"},{"$f":"IFERROR(IF(A86,0,IF(LEN('Công cụ theo dõi giảm cân'!$C89)=0,0,'Công cụ theo dõi giảm cân'!$C89)),\"\")","v":0}]
[{"$f":"IF((LEN('Công cụ theo dõi giảm cân'!$C90)=0),TRUE)","v":true},{"$f":"IFERROR(IF(A87,0,IF(LEN('Công cụ theo dõi giảm cân'!$B90)=0,0,'Công cụ theo dõi giảm cân'!$B90)),\"\")","v":"00:00:00"},{"$f":"IFERROR(IF(A87,0,IF(LEN('Công cụ theo dõi giảm cân'!$C90)=0,0,'Công cụ theo dõi giảm cân'!$C90)),\"\")","v":0}]
[{"$f":"IF((LEN('Công cụ theo dõi giảm cân'!$C91)=0),TRUE)","v":true},{"$f":"IFERROR(IF(A88,0,IF(LEN('Công cụ theo dõi giảm cân'!$B91)=0,0,'Công cụ theo dõi giảm cân'!$B91)),\"\")","v":"00:00:00"},{"$f":"IFERROR(IF(A88,0,IF(LEN('Công cụ theo dõi giảm cân'!$C91)=0,0,'Công cụ theo dõi giảm cân'!$C91)),\"\")","v":0}]
[{"$f":"IF((LEN('Công cụ theo dõi giảm cân'!$C92)=0),TRUE)","v":true},{"$f":"IFERROR(IF(A89,0,IF(LEN('Công cụ theo dõi giảm cân'!$B92)=0,0,'Công cụ theo dõi giảm cân'!$B92)),\"\")","v":"00:00:00"},{"$f":"IFERROR(IF(A89,0,IF(LEN('Công cụ theo dõi giảm cân'!$C92)=0,0,'Công cụ theo dõi giảm cân'!$C92)),\"\")","v":0}]
[{"$f":"IF((LEN('Công cụ theo dõi giảm cân'!$C93)=0),TRUE)","v":true},{"$f":"IFERROR(IF(A90,0,IF(LEN('Công cụ theo dõi giảm cân'!$B93)=0,0,'Công cụ theo dõi giảm cân'!$B93)),\"\")","v":"00:00:00"},{"$f":"IFERROR(IF(A90,0,IF(LEN('Công cụ theo dõi giảm cân'!$C93)=0,0,'Công cụ theo dõi giảm cân'!$C93)),\"\")","v":0}]
[{"$f":"IF((LEN('Công cụ theo dõi giảm cân'!$C94)=0),TRUE)","v":true},{"$f":"IFERROR(IF(A91,0,IF(LEN('Công cụ theo dõi giảm cân'!$B94)=0,0,'Công cụ theo dõi giảm cân'!$B94)),\"\")","v":"00:00:00"},{"$f":"IFERROR(IF(A91,0,IF(LEN('Công cụ theo dõi giảm cân'!$C94)=0,0,'Công cụ theo dõi giảm cân'!$C94)),\"\")","v":0}]
[{"$f":"IF((LEN('Công cụ theo dõi giảm cân'!$C95)=0),TRUE)","v":true},{"$f":"IFERROR(IF(A92,0,IF(LEN('Công cụ theo dõi giảm cân'!$B95)=0,0,'Công cụ theo dõi giảm cân'!$B95)),\"\")","v":"00:00:00"},{"$f":"IFERROR(IF(A92,0,IF(LEN('Công cụ theo dõi giảm cân'!$C95)=0,0,'Công cụ theo dõi giảm cân'!$C95)),\"\")","v":0}]
[{"$f":"IF((LEN('Công cụ theo dõi giảm cân'!$C96)=0),TRUE)","v":true},{"$f":"IFERROR(IF(A93,0,IF(LEN('Công cụ theo dõi giảm cân'!$B96)=0,0,'Công cụ theo dõi giảm cân'!$B96)),\"\")","v":"00:00:00"},{"$f":"IFERROR(IF(A93,0,IF(LEN('Công cụ theo dõi giảm cân'!$C96)=0,0,'Công cụ theo dõi giảm cân'!$C96)),\"\")","v":0}]
[{"$f":"IF((LEN('Công cụ theo dõi giảm cân'!$C97)=0),TRUE)","v":true},{"$f":"IFERROR(IF(A94,0,IF(LEN('Công cụ theo dõi giảm cân'!$B97)=0,0,'Công cụ theo dõi giảm cân'!$B97)),\"\")","v":"00:00:00"},{"$f":"IFERROR(IF(A94,0,IF(LEN('Công cụ theo dõi giảm cân'!$C97)=0,0,'Công cụ theo dõi giảm cân'!$C97)),\"\")","v":0}]
[{"$f":"IF((LEN('Công cụ theo dõi giảm cân'!$C98)=0),TRUE)","v":true},{"$f":"IFERROR(IF(A95,0,IF(LEN('Công cụ theo dõi giảm cân'!$B98)=0,0,'Công cụ theo dõi giảm cân'!$B98)),\"\")","v":"00:00:00"},{"$f":"IFERROR(IF(A95,0,IF(LEN('Công cụ theo dõi giảm cân'!$C98)=0,0,'Công cụ theo dõi giảm cân'!$C98)),\"\")","v":0}]
[{"$f":"IF((LEN('Công cụ theo dõi giảm cân'!$C99)=0),TRUE)","v":true},{"$f":"IFERROR(IF(A96,0,IF(LEN('Công cụ theo dõi giảm cân'!$B99)=0,0,'Công cụ theo dõi giảm cân'!$B99)),\"\")","v":"00:00:00"},{"$f":"IFERROR(IF(A96,0,IF(LEN('Công cụ theo dõi giảm cân'!$C99)=0,0,'Công cụ theo dõi giảm cân'!$C99)),\"\")","v":0}]
[{"$f":"IF((LEN('Công cụ theo dõi giảm cân'!$C100)=0),TRUE)","v":true},{"$f":"IFERROR(IF(A97,0,IF(LEN('Công cụ theo dõi giảm cân'!$B100)=0,0,'Công cụ theo dõi giảm cân'!$B100)),\"\")","v":"00:00:00"},{"$f":"IFERROR(IF(A97,0,IF(LEN('Công cụ theo dõi giảm cân'!$C100)=0,0,'Công cụ theo dõi giảm cân'!$C100)),\"\")","v":0}]
[{"$f":"IF((LEN('Công cụ theo dõi giảm cân'!$C101)=0),TRUE)","v":true},{"$f":"IFERROR(IF(A98,0,IF(LEN('Công cụ theo dõi giảm cân'!$B101)=0,0,'Công cụ theo dõi giảm cân'!$B101)),\"\")","v":"00:00:00"},{"$f":"IFERROR(IF(A98,0,IF(LEN('Công cụ theo dõi giảm cân'!$C101)=0,0,'Công cụ theo dõi giảm cân'!$C101)),\"\")","v":0}]
[{"$f":"IF((LEN('Công cụ theo dõi giảm cân'!$C102)=0),TRUE)","v":true},{"$f":"IFERROR(IF(A99,0,IF(LEN('Công cụ theo dõi giảm cân'!$B102)=0,0,'Công cụ theo dõi giảm cân'!$B102)),\"\")","v":"00:00:00"},{"$f":"IFERROR(IF(A99,0,IF(LEN('Công cụ theo dõi giảm cân'!$C102)=0,0,'Công cụ theo dõi giảm cân'!$C102)),\"\")","v":0}]
[{"$f":"IF((LEN('Công cụ theo dõi giảm cân'!$C103)=0),TRUE)","v":true},{"$f":"IFERROR(IF(A100,0,IF(LEN('Công cụ theo dõi giảm cân'!$B103)=0,0,'Công cụ theo dõi giảm cân'!$B103)),\"\")","v":"00:00:00"},{"$f":"IFERROR(IF(A100,0,IF(LEN('Công cụ theo dõi giảm cân'!$C103)=0,0,'Công cụ theo dõi giảm cân'!$C103)),\"\")","v":0}]
[{"$f":"IF((LEN('Công cụ theo dõi giảm cân'!$C104)=0),TRUE)","v":true},{"$f":"IFERROR(IF(A101,0,IF(LEN('Công cụ theo dõi giảm cân'!$B104)=0,0,'Công cụ theo dõi giảm cân'!$B104)),\"\")","v":"00:00:00"},{"$f":"IFERROR(IF(A101,0,IF(LEN('Công cụ theo dõi giảm cân'!$C104)=0,0,'Công cụ theo dõi giảm cân'!$C104)),\"\")","v":0}]
[{"$f":"IF((LEN('Công cụ theo dõi giảm cân'!$C105)=0),TRUE)","v":true},{"$f":"IFERROR(IF(A102,0,IF(LEN('Công cụ theo dõi giảm cân'!$B105)=0,0,'Công cụ theo dõi giảm cân'!$B105)),\"\")","v":"00:00:00"},{"$f":"IFERROR(IF(A102,0,IF(LEN('Công cụ theo dõi giảm cân'!$C105)=0,0,'Công cụ theo dõi giảm cân'!$C105)),\"\")","v":0}]
[{"$f":"IF((LEN('Công cụ theo dõi giảm cân'!$C106)=0),TRUE)","v":true},{"$f":"IFERROR(IF(A103,0,IF(LEN('Công cụ theo dõi giảm cân'!$B106)=0,0,'Công cụ theo dõi giảm cân'!$B106)),\"\")","v":"00:00:00"},{"$f":"IFERROR(IF(A103,0,IF(LEN('Công cụ theo dõi giảm cân'!$C106)=0,0,'Công cụ theo dõi giảm cân'!$C106)),\"\")","v":0}]
[{"$f":"IF((LEN('Công cụ theo dõi giảm cân'!$C107)=0),TRUE)","v":true},{"$f":"IFERROR(IF(A104,0,IF(LEN('Công cụ theo dõi giảm cân'!$B107)=0,0,'Công cụ theo dõi giảm cân'!$B107)),\"\")","v":"00:00:00"},{"$f":"IFERROR(IF(A104,0,IF(LEN('Công cụ theo dõi giảm cân'!$C107)=0,0,'Công cụ theo dõi giảm cân'!$C107)),\"\")","v":0}]
[{"$f":"IF((LEN('Công cụ theo dõi giảm cân'!$C108)=0),TRUE)","v":true},{"$f":"IFERROR(IF(A105,0,IF(LEN('Công cụ theo dõi giảm cân'!$B108)=0,0,'Công cụ theo dõi giảm cân'!$B108)),\"\")","v":"00:00:00"},{"$f":"IFERROR(IF(A105,0,IF(LEN('Công cụ theo dõi giảm cân'!$C108)=0,0,'Công cụ theo dõi giảm cân'!$C108)),\"\")","v":0}]
[{"$f":"IF((LEN('Công cụ theo dõi giảm cân'!$C109)=0),TRUE)","v":true},{"$f":"IFERROR(IF(A106,0,IF(LEN('Công cụ theo dõi giảm cân'!$B109)=0,0,'Công cụ theo dõi giảm cân'!$B109)),\"\")","v":"00:00:00"},{"$f":"IFERROR(IF(A106,0,IF(LEN('Công cụ theo dõi giảm cân'!$C109)=0,0,'Công cụ theo dõi giảm cân'!$C109)),\"\")","v":0}]
[{"$f":"IF((LEN('Công cụ theo dõi giảm cân'!$C110)=0),TRUE)","v":true},{"$f":"IFERROR(IF(A107,0,IF(LEN('Công cụ theo dõi giảm cân'!$B110)=0,0,'Công cụ theo dõi giảm cân'!$B110)),\"\")","v":"00:00:00"},{"$f":"IFERROR(IF(A107,0,IF(LEN('Công cụ theo dõi giảm cân'!$C110)=0,0,'Công cụ theo dõi giảm cân'!$C110)),\"\")","v":0}]